[Event "FIDE WYCC Girls U14 2023"]
[Site "Montesilvano"]
[Date "2023.11.18"]
[Round "6.25"]
[White "Smietanska, Wiktoria"]
[Black "Sun, Wanyao Sarah"]
[Result "1-0"]
[ECO "A10"]
[WhiteElo "2009"]
[BlackElo "1593"]
[Annotator "NA"]
[PlyCount "129"]
[EventDate "2023.11.13"]
[EventType "swiss"]
[EventCountry "ITA"]
[SourceTitle "playchess.com"]
[Source "ChessBase"]
[SourceQuality "1"]
[TimeControl "40/5400+30:1800+30"]

1. c4 {[%emt 0:00:03]} g6 {[%emt 0:00:06]} 2. Nf3 {[%emt 0:00:29]} Bg7 {[%emt 0:00:55]} 3. g3 {[%emt 0:01:00]} e5 {[%emt 0:00:18]} 4. Nc3 {[%emt 0:04:02]} d6 {[%emt 0:00:52]} 5. Bg2 {[%emt 0:03:11]} f5 {[%emt 0:03:04]} 6. d4 {[%emt 0:03:02]} e4 {[%emt 0:01:03]} 7. Ng1 {[%emt 0:03:49]} Nf6 {[%emt 0:01:08]} 8. Nh3 {[%emt 0:01:44]} O-O {[%emt 0:02:31]} 9. e3 {[%emt 0:05:23]} Nc6 {[%emt 0:02:45]} 10. Nf4 {[%emt 0:01:28]} Bd7 {[%emt 0:05:36]} 11. h4 {[%emt 0:04:14]} Qe8 {[%emt 0:05:32]} 12. Rb1 {[%emt 0:02:01]} a5 {[%emt 0:03:55]} 13. Qb3 {[%emt 0:02:47]} a4 {[%emt 0:10:58]} 14. Qd1 {[%emt 0:06:55]} Qf7 {[%emt 0:03:16]} 15. Bf1 {[%emt 0:03:13]} Ng4 {[%emt 0:11:35]} 16. Be2 {[%emt 0:03:53]} Na5 {[%emt 0:03:30]} 17. Ncd5 {[%emt 0:06:51]} Rac8 {[%emt 0:03:08]} 18. Bd2 {[%emt 0:02:20]} Nc6 {[%emt 0:01:00]} 19. Rc1 {[%emt 0:04:46]} Ne7 {[%emt 0:02:43]} 20. Nc3 {[%emt 0:01:00]} Ra8 {[%emt 0:02:36]} 21. Bxg4 {[%emt 0:03:27]} fxg4 {[%emt 0:00:11]} 22. Nxe4 {[%emt 0:00:08]} Bf5 {[%emt 0:02:14]} 23. Nc3 {[%emt 0:00:43]} h6 {[%emt 0:01:33]} 24. Qe2 {[%emt 0:16:46]} Rae8 {[%emt 0:04:15]} 25. O-O {[%emt 0:03:19]} Nc6 {[%emt 0:00:58]} 26. Qd1 {[%emt 0:05:04]} g5 {[%emt 0:02:43]} 27. hxg5 {[%emt 0:02:46]} hxg5 {[%emt 0:00:18]} 28. Nfd5 {[%emt 0:02:07]} Bd3 {[%emt 0:00:55]} 29. Qxg4 {[%emt 0:00:17]} Bxc4 {[%emt 0:02:38]} 30. Qxg5 {[%emt 0:00:36]} Bxf1 {[%emt 0:00:56]} 31. Rxf1 {[%emt 0:00:08]} Re6 {[%emt 0:00:40]} 32. Nf4 {[%emt 0:01:07]} Rf6 {[%emt 0:01:30]} 33. Qd5 {[%emt 0:00:55]} Bh6 {[%emt 0:03:42]} 34. Qxf7+ {[%emt 0:00:22]} R8xf7 {[%emt 0:02:25]} 35. Nfd5 {[%emt 0:00:57]} Rf5 {[%emt 0:03:22]} 36. f4 {[%emt 0:00:39]} Rh5 {[%emt 0:01:51]} 37. Kg2 {[%emt 0:01:07]} Bf8 {[%emt 0:02:48]} 38. g4 {[%emt 0:00:41]} Rh6 {[%emt 0:00:34]} 39. g5 {[%emt 0:00:22]} Rg6 {[%emt 0:01:12]} 40. Ne4 {[%emt 0:00:00]} Be7 {[%emt 0:00:00]} 41. Rh1 {[%emt 0:08:00]} Bd8 {[%emt 0:08:54]} 42. Rh5 {[%emt 0:07:48]} Nb8 {[%emt 0:05:34]} 43. Kh3 {[%emt 0:02:34]} Rh7 {[%emt 0:01:25]} 44. Ndf6+ {[%emt 0:03:19]} Bxf6 {[%emt 0:00:09]} 45. Nxf6+ {[%emt 0:00:51]} Rxf6 {[%emt 0:00:25]} 46. Rxh7 {[%emt 0:00:04]} Kxh7 {[%emt 0:00:04]} 47. gxf6 {[%emt 0:00:13]} Kg6 {[%emt 0:00:07]} 48. e4 {[%emt 0:01:39]} Kxf6 {[%emt 0:00:09]} 49. Kg4 {[%emt 0:00:53]} Nd7 {[%emt 0:02:06]} 50. Bc3 {[%emt 0:01:32]} b5 {[%emt 0:01:36]} 51. e5+ {[%emt 0:02:04]} dxe5 {[%emt 0:00:10]} 52. dxe5+ {[%emt 0:00:13]} Ke7 {[%emt 0:00:45]} 53. f5 {[%emt 0:01:16]} c5 {[%emt 0:00:17]} 54. e6 {[%emt 0:06:03]} Nf8 {[%emt 0:02:42]} 55. Kf4 {[%emt 0:00:42]} b4 {[%emt 0:00:25]} 56. Be1 {[%emt 0:00:48]} Nxe6+ {[%emt 0:01:07]} 57. fxe6 {[%emt 0:00:12]} Kxe6 {[%emt 0:00:04]} 58. Ke4 {[%emt 0:00:38]} Kd6 {[%emt 0:00:07]} 59. Kd3 {[%emt 0:01:40]} Kd5 {[%emt 0:00:09]} 60. b3 {[%emt 0:01:31]} Kc6 {[%emt 0:01:23]} 61. Kc4 {[%emt 0:00:14]} Kb6 {[%emt 0:00:21]} 62. Bf2 {[%emt 0:00:11]} Ka5 {[%emt 0:01:45]} 63. Bxc5 {[%emt 0:00:12]} axb3 {[%emt 0:00:11]} 64. Bxb4+ {[%emt 0:00:15]} Kb6 {[%emt 0:00:36]} 65. axb3 {[%emt 0:00:06]} 1-0

[Event "FIDE WYCC Girls U14 2023"]
[Site "Montesilvano"]
[Date "2023.11.18"]
[Round "6.26"]
[White "Toth, Lili"]
[Black "Hong, Jueun"]
[Result "0-1"]
[ECO "D31"]
[WhiteElo "2199"]
[BlackElo "1299"]
[Annotator "ChessBase"]
[PlyCount "41"]
[EventDate "2023.11.13"]
[EventType "swiss"]
[EventCountry "ITA"]
[SourceTitle "playchess.com"]
[Source "ChessBase"]
[SourceQuality "1"]
[TimeControl "40/5400+30:1800+30"]

1. d4 {[%emt 0:00:06]} d5 {[%emt 0:00:07]} 2. c4 {[%emt 0:00:05]} e6 {[%emt 0:00:05]} 3. Nc3 {[%emt 0:00:31]} c6 {[%emt 0:00:07]} 4. e4 {[%emt 0:05:55]} Bb4 {[%emt 0:03:44]} 5. Bd3 {[%emt 0:11:13]} dxe4 {[%emt 0:03:38]} 6. Bxe4 {[%emt 0:00:07]} Nf6 {[%emt 0:00:30]} 7. Bc2 {[%emt 0:01:51]} Nbd7 {[%emt 0:04:46]} 8. Nge2 {[%emt 0:03:36]} O-O {[%emt 0:05:48]} 9. O-O {[%emt 0:00:11]} e5 {[%emt 0:05:21]} 10. Bg5 {[%emt 0:03:41]} exd4 {[%emt 0:04:01]} 11. Qxd4 {[%emt 0:00:38]} Qa5 {[%emt 0:03:04]} 12. Ne4 {[%emt 0:07:53]} Re8 {[%emt 0:12:06]} 13. Nxf6+ {[%emt 0:23:01]} Nxf6 {[%emt 0:09:52]} 14. Bxf6 {[%emt 0:02:01]} Rxe2 {[%emt 0:06:05]} 15. Bd3 {[%emt 0:14:51]} Rd2 {[%emt 0:03:19]} 16. Bd8 {[%emt 0:12:23]} Qh5 {[%emt 0:05:37]} 17. Rae1 {[%emt 0:02:12]} Be6 {[%emt 0:05:42]} 18. Re5 {[%emt 0:01:11]} Rxd3 {[%emt 0:03:10]} 19. Qf4 {[%emt 0:00:37]} Bd6 {[%emt 0:03:42]} 20. Rxe6 {[%emt 0:02:24]} fxe6 {[%emt 0:00:23]} 21. Qe4 0-1

[Event "FIDE WYCC Girls U14 2023"]
[Site "Montesilvano"]
[Date "2023.11.18"]
[Round "6.27"]
[White "Diasamidze, Lulu"]
[Black "Iordache, Alexia-Andreea"]
[Result "1-0"]
[ECO "B90"]
[WhiteElo "1676"]
[BlackElo "1892"]
[Annotator "NA"]
[PlyCount "121"]
[EventDate "2023.11.13"]
[EventType "swiss"]
[EventCountry "ITA"]
[SourceTitle "playchess.com"]
[Source "ChessBase"]
[SourceQuality "1"]
[TimeControl "40/5400+30:1800+30"]

1. e4 {[%emt 0:00:05]} c5 {[%emt 0:00:03]} 2. Nf3 {[%emt 0:00:15]} d6 {[%emt 0:00:03]} 3. d4 {[%emt 0:00:11]} cxd4 {[%emt 0:00:04]} 4. Nxd4 {[%emt 0:00:06]} Nf6 {[%emt 0:00:03]} 5. Nc3 {[%emt 0:00:07]} a6 {[%emt 0:00:03]} 6. h3 {[%emt 0:00:30]} g6 {[%emt 0:00:04]} 7. g4 {[%emt 0:01:22]} Bg7 {[%emt 0:00:06]} 8. Bg2 {[%emt 0:00:24]} O-O {[%emt 0:00:43]} 9. O-O {[%emt 0:00:34]} Bd7 {[%emt 0:02:50]} 10. Nce2 {[%emt 0:07:04]} Nc6 {[%emt 0:00:59]} 11. Be3 {[%emt 0:00:53]} Rc8 {[%emt 0:01:29]} 12. Rc1 {[%emt 0:00:43]} Qa5 {[%emt 0:05:40]} 13. b3 {[%emt 0:07:19]} b5 {[%emt 0:04:38]} 14. Bd2 {[%emt 0:11:45]} Qd8 {[%emt 0:04:07]} 15. Nxc6 {[%emt 0:01:23]} Bxc6 {[%emt 0:00:16]} 16. Bc3 {[%emt 0:02:45]} b4 {[%emt 0:07:01]} 17. Bb2 {[%emt 0:01:36]} Qa5 {[%emt 0:01:13]} 18. Ng3 {[%emt 0:15:13]} Rfd8 {[%emt 0:07:12]} 19. a3 {[%emt 0:04:48]} bxa3 {[%emt 0:09:41]} 20. Ra1 {[%emt 0:03:04]} a2 {[%emt 0:01:13]} 21. Qe1 {[%emt 0:08:29]} Qc5 {[%emt 0:01:27]} 22. Qc1 {[%emt 0:04:36]} Bb7 {[%emt 0:06:44]} 23. Bxf6 {[%emt 0:04:56]} Bxf6 {[%emt 0:00:19]} 24. Rxa2 {[%emt 0:00:13]} Qb6 {[%emt 0:03:38]} 25. Qd1 {[%emt 0:01:24]} Rb8 {[%emt 0:08:10]} 26. Ne2 {[%emt 0:00:45]} Rdc8 {[%emt 0:04:13]} 27. Nf4 {[%emt 0:02:47]} e6 {[%emt 0:01:36]} 28. Nd3 {[%emt 0:01:00]} Qd4 {[%emt 0:02:37]} 29. Qe2 {[%emt 0:00:54]} Rc3 {[%emt 0:04:38]} 30. Nb2 {[%emt 0:01:32]} Rcc8 {[%emt 0:06:42]} 31. Rd1 {[%emt 0:00:42]} Qc5 {[%emt 0:00:40]} 32. Nc4 {[%emt 0:01:24]} Rd8 {[%emt 0:00:40]} 33. Qf3 {[%emt 0:04:07]} Bg7 {[%emt 0:00:50]} 34. Qg3 {[%emt 0:00:16]} Bf8 {[%emt 0:01:43]} 35. h4 {[%emt 0:01:22]} Ra8 {[%emt 0:11:06]} 36. Na5 {[%emt 0:02:23]} Bc8 {[%emt 0:01:17]} 37. Rd3 {[%emt 0:00:50]} d5 {[%emt 0:00:42]} 38. exd5 {[%emt 0:00:33]} exd5 {[%emt 0:00:09]} 39. c4 {[%emt 0:00:56]} Be6 {[%emt 0:00:31]} 40. Nb7 {[%emt 0:00:00]} Qb4 {[%emt 0:00:00]} 41. Nxd8 {[%emt 0:00:44]} Rxd8 {[%emt 0:03:57]} 42. Bxd5 {[%emt 0:02:58]} Qe1+ {[%emt 0:01:24]} 43. Kg2 {[%emt 0:00:43]} Bxd5+ {[%emt 0:01:57]} 44. Rxd5 {[%emt 0:01:01]} Re8 {[%emt 0:00:13]} 45. Rad2 {[%emt 0:00:33]} Qb1 {[%emt 0:01:25]} 46. Rd1 {[%emt 0:00:47]} Qa2 {[%emt 0:00:21]} 47. Qf3 {[%emt 0:00:40]} Qb2 {[%emt 0:01:51]} 48. Rd7 {[%emt 0:01:07]} Be7 {[%emt 0:00:29]} 49. g5 {[%emt 0:00:17]} Qe5 {[%emt 0:00:25]} 50. Qe3 {[%emt 0:00:37]} Qf5 {[%emt 0:00:16]} 51. Qf3 {[%emt 0:01:17]} Qe6 {[%emt 0:00:36]} 52. R1d5 {[%emt 0:00:44]} a5 {[%emt 0:00:33]} 53. Ra7 {[%emt 0:00:37]} Bb4 {[%emt 0:01:50]} 54. Rdd7 {[%emt 0:00:26]} Be7 {[%emt 0:00:11]} 55. Rdc7 {[%emt 0:00:14]} Kf8 {[%emt 0:00:49]} 56. Ra8 {[%emt 0:00:40]} Bd8 {[%emt 0:00:04]} 57. Rcc8 {[%emt 0:00:24]} Qd7 {[%emt 0:00:28]} 58. c5 {[%emt 0:00:15]} Qd4 {[%emt 0:01:01]} 59. c6 {[%emt 0:00:46]} Kg7 {[%emt 0:02:26]} 60. Rxd8 {[%emt 0:00:56]} Rxd8 61. Qf6+ {[%emt 0:00:24]} 1-0

[Event "FIDE WYCC Girls U14 2023"]
[Site "Montesilvano"]
[Date "2023.11.18"]
[Round "6.28"]
[White "Sosovickova, Martina"]
[Black "Sodgerelt Naranbold"]
[Result "0-1"]
[ECO "B53"]
[WhiteElo "1877"]
[BlackElo "1419"]
[Annotator "NA"]
[PlyCount "56"]
[EventDate "2023.11.13"]
[EventType "swiss"]
[EventCountry "ITA"]
[SourceTitle "playchess.com"]
[Source "ChessBase"]
[SourceQuality "1"]
[TimeControl "40/5400+30:1800+30"]

1. e4 {[%emt 0:00:03]} c5 {[%emt 0:01:54]} 2. Nf3 {[%emt 0:00:12]} d6 {[%emt 0:01:30]} 3. d4 {[%emt 0:00:10]} cxd4 {[%emt 0:01:32]} 4. Qxd4 {[%emt 0:00:21]} Nc6 {[%emt 0:01:28]} 5. Bb5 {[%emt 0:00:08]} Bd7 {[%emt 0:01:29]} 6. Bxc6 {[%emt 0:00:21]} Bxc6 {[%emt 0:01:32]} 7. Nc3 {[%emt 0:00:26]} Nf6 {[%emt 0:01:34]} 8. Bg5 {[%emt 0:00:27]} e6 {[%emt 0:01:29]} 9. O-O-O {[%emt 0:00:25]} Be7 {[%emt 0:01:59]} 10. Rhe1 {[%emt 0:00:27]} b5 {[%emt 0:02:47]} 11. e5 {[%emt 0:18:13]} dxe5 {[%emt 0:04:10]} 12. Qxe5 {[%emt 0:01:37]} Qb6 {[%emt 0:01:28]} 13. Nd4 {[%emt 0:04:27]} b4 {[%emt 0:05:16]} 14. Ncb5 {[%emt 0:11:13]} Bxb5 {[%emt 0:04:40]} 15. Nxb5 {[%emt 0:02:05]} O-O {[%emt 0:01:29]} 16. h4 {[%emt 0:18:07]} Ng4 {[%emt 0:08:12]} 17. Qe2 {[%emt 0:00:13]} Bxg5+ {[%emt 0:01:56]} 18. hxg5 {[%emt 0:00:05]} Nxf2 {[%emt 0:00:26]} 19. Rd4 {[%emt 0:02:47]} a6 {[%emt 0:02:02]} 20. Rh4 {[%emt 0:11:07]} axb5 {[%emt 0:01:55]} 21. Qh5 {[%emt 0:01:41]} h6 {[%emt 0:00:06]} 22. Kb1 {[%emt 0:07:50]} Qa5 {[%emt 0:02:54]} 23. a3 {[%emt 0:00:23]} bxa3 {[%emt 0:00:07]} 24. b4 {[%emt 0:00:22]} a2+ {[%emt 0:00:34]} 25. Ka1 {[%emt 0:00:20]} Qc7 {[%emt 0:02:11]} 26. Qf3 {[%emt 0:01:51]} Qxc2 {[%emt 0:00:32]} 27. gxh6 {[%emt 0:01:21]} Nd3 {[%emt 0:00:12]} 28. Qg3 {[%emt 0:01:23]} Qb2# 0-1

[Event "FIDE WYCC Girls U14 2023"]
[Site "Montesilvano"]
[Date "2023.11.18"]
[Round "6.29"]
[White "Blauhut, Anna"]
[Black "Li Chen, Helena Joana"]
[Result "0-1"]
[ECO "B40"]
[WhiteElo "1640"]
[BlackElo "1799"]
[Annotator "NA"]
[PlyCount "128"]
[EventDate "2023.11.13"]
[EventType "swiss"]
[EventCountry "ITA"]
[SourceTitle "playchess.com"]
[Source "ChessBase"]
[SourceQuality "1"]
[TimeControl "40/5400+30:1800+30"]

1. e4 {[%emt 0:00:06]} c5 {[%emt 0:00:09]} 2. Nf3 {[%emt 0:00:20]} e6 {[%emt 0:00:03]} 3. d3 {[%emt 0:00:56]} Nc6 {[%emt 0:00:06]} 4. g3 {[%emt 0:00:59]} d5 {[%emt 0:00:13]} 5. Qe2 {[%emt 0:01:05]} Be7 {[%emt 0:00:05]} 6. Bg2 {[%emt 0:00:56]} Nf6 {[%emt 0:00:51]} 7. O-O {[%emt 0:01:08]} b6 {[%emt 0:00:34]} 8. e5 {[%emt 0:01:09]} Nd7 {[%emt 0:00:07]} 9. c4 {[%emt 0:00:57]} Bb7 {[%emt 0:00:19]} 10. h4 {[%emt 0:02:12]} h6 {[%emt 0:00:17]} 11. cxd5 {[%emt 0:07:07]} exd5 {[%emt 0:00:42]} 12. e6 {[%emt 0:00:36]} Nf6 {[%emt 0:02:12]} 13. exf7+ {[%emt 0:01:12]} Kxf7 {[%emt 0:00:15]} 14. Bh3 {[%emt 0:04:10]} Bc8 {[%emt 0:00:20]} 15. Bg2 {[%emt 0:01:59]} Re8 {[%emt 0:02:30]} 16. Nc3 {[%emt 0:02:33]} Kg8 {[%emt 0:01:17]} 17. Ne5 {[%emt 0:04:40]} Nd4 {[%emt 0:05:49]} 18. Qd1 {[%emt 0:01:01]} Bb7 {[%emt 0:00:48]} 19. Bf4 {[%emt 0:01:20]} Bd6 {[%emt 0:05:22]} 20. Ng6 {[%emt 0:03:16]} b5 {[%emt 0:07:23]} 21. Bxd6 {[%emt 0:04:18]} Qxd6 {[%emt 0:00:11]} 22. Nf4 {[%emt 0:00:19]} b4 {[%emt 0:02:12]} 23. Nce2 {[%emt 0:00:34]} Nf5 {[%emt 0:01:07]} 24. Qc2 {[%emt 0:05:11]} Re7 {[%emt 0:05:59]} 25. Bh3 {[%emt 0:03:30]} Bc8 {[%emt 0:02:12]} 26. Rac1 {[%emt 0:02:32]} g5 {[%emt 0:03:44]} 27. d4 {[%emt 0:07:32]} gxf4 {[%emt 0:05:26]} 28. Bxf5 {[%emt 0:01:35]} Bxf5 {[%emt 0:00:16]} 29. Qxf5 {[%emt 0:00:37]} Rxe2 {[%emt 0:00:19]} 30. Qg6+ {[%emt 0:00:37]} Kf8 {[%emt 0:00:10]} 31. Qxh6+ {[%emt 0:00:48]} Kf7 {[%emt 0:00:07]} 32. dxc5 {[%emt 0:01:04]} Qe5 {[%emt 0:01:58]} 33. Qg5 {[%emt 0:05:03]} fxg3 {[%emt 0:02:28]} 34. Qxe5 {[%emt 0:02:03]} gxf2+ {[%emt 0:00:06]} 35. Rxf2 {[%emt 0:00:44]} Rxe5 {[%emt 0:00:07]} 36. c6 {[%emt 0:01:59]} Rg8+ {[%emt 0:00:29]} 37. Kf1 {[%emt 0:00:28]} Ke7 {[%emt 0:01:07]} 38. c7 {[%emt 0:03:24]} Rc8 {[%emt 0:00:05]} 39. Rg2 {[%emt 0:00:12]} Rf5+ {[%emt 0:01:51]} 40. Ke2 {[%emt 0:00:00]} Nh5 {[%emt 0:00:00]} 41. Rg4 {[%emt 0:03:50]} Kd7 {[%emt 0:01:45]} 42. Rxb4 {[%emt 0:01:08]} Rxc7 {[%emt 0:00:07]} 43. Rxc7+ {[%emt 0:01:07]} Kxc7 {[%emt 0:00:05]} 44. Ra4 {[%emt 0:02:34]} Kb6 {[%emt 0:00:12]} 45. Rb4+ {[%emt 0:00:56]} Kc5 {[%emt 0:00:09]} 46. Ra4 {[%emt 0:00:20]} Rf7 {[%emt 0:00:07]} 47. Ke3 {[%emt 0:02:05]} Kd6 {[%emt 0:00:32]} 48. b4 {[%emt 0:02:28]} Ke5 {[%emt 0:01:31]} 49. b5 {[%emt 0:03:21]} Nf4 {[%emt 0:00:13]} 50. Rb4 {[%emt 0:02:22]} Ne6 {[%emt 0:00:36]} 51. a4 {[%emt 0:01:52]} d4+ {[%emt 0:00:10]} 52. Kd2 {[%emt 0:01:06]} Ke4 {[%emt 0:01:28]} 53. a5 {[%emt 0:01:18]} Rf2+ {[%emt 0:00:10]} 54. Ke1 {[%emt 0:00:09]} Rh2 {[%emt 0:00:10]} 55. Kf1 {[%emt 0:04:08]} Ke3 {[%emt 0:01:23]} 56. Kg1 {[%emt 0:00:47]} Rxh4 {[%emt 0:00:29]} 57. b6 {[%emt 0:03:27]} axb6 {[%emt 0:00:08]} 58. axb6 {[%emt 0:00:05]} Rh8 {[%emt 0:00:09]} 59. Rb1 {[%emt 0:01:12]} Nf4 {[%emt 0:00:33]} 60. Rb3+ {[%emt 0:01:11]} d3 {[%emt 0:00:10]} 61. b7 {[%emt 0:00:12]} Rb8 {[%emt 0:01:12]} 62. Kf1 {[%emt 0:00:16]} Kd2 {[%emt 0:00:37]} 63. Rb6 {[%emt 0:01:00]} Nd5 {[%emt 0:00:25]} 64. Rb5 {[%emt 0:01:52]} Nc3 {[%emt 0:00:09]} 0-1

[Event "FIDE WYCC Girls U14 2023"]
[Site "Montesilvano"]
[Date "2023.11.18"]
[Round "6.30"]
[White "Alemanova, Yasmina"]
[Black "Derlich, Sarah Sima"]
[Result "1/2-1/2"]
[ECO "D10"]
[WhiteElo "1570"]
[BlackElo "1745"]
[Annotator "NA"]
[PlyCount "92"]
[EventDate "2023.11.13"]
[EventType "swiss"]
[EventCountry "ITA"]
[SourceTitle "playchess.com"]
[Source "ChessBase"]
[SourceQuality "1"]
[TimeControl "40/5400+30:1800+30"]

1. d4 {[%emt 0:00:02]} d5 {[%emt 0:00:05]} 2. c4 {[%emt 0:00:03]} c6 {[%emt 0:00:05]} 3. cxd5 {[%emt 0:01:09]} cxd5 {[%emt 0:00:16]} 4. Nc3 {[%emt 0:00:04]} Nf6 {[%emt 0:00:40]} 5. Bf4 {[%emt 0:00:10]} Nc6 {[%emt 0:03:48]} 6. e3 {[%emt 0:00:11]} Bf5 {[%emt 0:03:53]} 7. Qb3 {[%emt 0:00:08]} Qd7 {[%emt 0:00:49]} 8. Nf3 {[%emt 0:00:14]} e6 {[%emt 0:07:17]} 9. Ne5 {[%emt 0:00:35]} Qc8 {[%emt 0:00:45]} 10. Bb5 {[%emt 0:06:32]} Nd7 {[%emt 0:06:28]} 11. O-O {[%emt 0:10:54]} Be7 {[%emt 0:02:22]} 12. Rac1 {[%emt 0:06:26]} Ndxe5 {[%emt 0:02:20]} 13. Bxe5 {[%emt 0:00:09]} O-O {[%emt 0:00:12]} 14. Na4 {[%emt 0:01:30]} Qd7 {[%emt 0:03:06]} 15. Nc5 {[%emt 0:01:50]} Bxc5 {[%emt 0:01:11]} 16. Rxc5 {[%emt 0:00:06]} Rfc8 {[%emt 0:04:37]} 17. Rfc1 {[%emt 0:00:36]} f6 {[%emt 0:10:36]} 18. Bg3 {[%emt 0:00:12]} a6 {[%emt 0:00:51]} 19. Bxc6 {[%emt 0:00:14]} Rxc6 {[%emt 0:00:05]} 20. Rxc6 {[%emt 0:00:04]} bxc6 {[%emt 0:00:04]} 21. Qb6 {[%emt 0:00:08]} Bd3 {[%emt 0:03:15]} 22. Qxc6 {[%emt 0:03:55]} Qxc6 {[%emt 0:00:42]} 23. Rxc6 {[%emt 0:00:04]} Kf7 {[%emt 0:00:07]} 24. h4 {[%emt 0:02:10]} h5 {[%emt 0:05:52]} 25. Bd6 {[%emt 0:01:40]} Bb5 {[%emt 0:06:35]} 26. Rc7+ {[%emt 0:01:03]} Kg6 {[%emt 0:00:38]} 27. b3 {[%emt 0:00:54]} Rd8 {[%emt 0:04:01]} 28. Bc5 {[%emt 0:01:21]} Rd7 {[%emt 0:00:18]} 29. Rxd7 {[%emt 0:06:53]} Bxd7 {[%emt 0:00:05]} 30. a4 {[%emt 0:00:05]} Kf5 {[%emt 0:00:56]} 31. f3 {[%emt 0:00:36]} e5 {[%emt 0:02:03]} 32. dxe5 {[%emt 0:01:40]} Kxe5 {[%emt 0:01:58]} 33. Kf2 {[%emt 0:00:31]} Bf5 {[%emt 0:04:19]} 34. Bd4+ {[%emt 0:01:28]} Kd6 {[%emt 0:00:20]} 35. b4 {[%emt 0:00:34]} Kc6 {[%emt 0:00:38]} 36. Kg3 {[%emt 0:00:16]} Bc2 {[%emt 0:00:47]} 37. a5 {[%emt 0:01:31]} Bd3 {[%emt 0:00:37]} 38. Kf4 {[%emt 0:00:12]} Kd6 {[%emt 0:00:11]} 39. g4 {[%emt 0:00:20]} hxg4 {[%emt 0:00:30]} 40. fxg4 {[%emt 0:00:00]} Ke6 {[%emt 0:00:00]} 41. h5 {[%emt 0:02:14]} Ke7 {[%emt 0:14:28]} 42. g5 {[%emt 0:02:21]} fxg5+ {[%emt 0:00:19]} 43. Kxg5 {[%emt 0:00:04]} Kf7 {[%emt 0:00:04]} 44. Kf4 {[%emt 0:01:08]} Kg8 {[%emt 0:01:10]} 45. Ke5 {[%emt 0:01:06]} Bc4 {[%emt 0:00:06]} 46. Kf5 {[%emt 0:01:50]} Kh7 {[%emt 0:02:45]} 1/2-1/2

[Event "FIDE WYCC Girls U14 2023"]
[Site "Montesilvano"]
[Date "2023.11.18"]
[Round "6.31"]
[White "Andries, Alexia"]
[Black "Dimatangihan Anica Shey"]
[Result "1/2-1/2"]
[ECO "D48"]
[WhiteElo "1750"]
[BlackElo "1091"]
[Annotator "NA"]
[PlyCount "120"]
[EventDate "2023.11.13"]
[EventType "swiss"]
[EventCountry "ITA"]
[SourceTitle "playchess.com"]
[Source "ChessBase"]
[SourceQuality "1"]
[TimeControl "40/5400+30:1800+30"]

1. d4 {[%emt 0:00:02]} d5 {[%emt 0:00:15]} 2. c4 {[%emt 0:00:04]} e6 {[%emt 0:00:05]} 3. Nc3 {[%emt 0:00:04]} c6 {[%emt 0:00:06]} 4. e3 {[%emt 0:00:34]} Nf6 {[%emt 0:00:22]} 5. Nf3 {[%emt 0:00:04]} Nbd7 {[%emt 0:00:16]} 6. Bd3 {[%emt 0:00:05]} dxc4 {[%emt 0:00:08]} 7. Bxc4 {[%emt 0:00:05]} b5 {[%emt 0:00:06]} 8. Bd3 {[%emt 0:00:05]} a6 {[%emt 0:00:30]} 9. O-O {[%emt 0:00:07]} b4 {[%emt 0:01:56]} 10. Na4 {[%emt 0:00:11]} c5 {[%emt 0:01:28]} 11. b3 {[%emt 0:03:34]} Bb7 {[%emt 0:00:44]} 12. Be2 {[%emt 0:03:14]} Be7 {[%emt 0:01:02]} 13. Bb2 {[%emt 0:00:49]} O-O {[%emt 0:04:31]} 14. Rc1 {[%emt 0:00:48]} Rc8 {[%emt 0:04:58]} 15. h3 {[%emt 0:20:52]} Ne4 {[%emt 0:03:52]} 16. Nd2 {[%emt 0:00:20]} a5 {[%emt 0:03:28]} 17. Nxe4 {[%emt 0:02:09]} Bxe4 {[%emt 0:00:10]} 18. Ba6 {[%emt 0:02:07]} Ra8 {[%emt 0:00:58]} 19. Bb5 {[%emt 0:00:20]} cxd4 {[%emt 0:08:22]} 20. f3 {[%emt 0:07:27]} Bg6 {[%emt 0:06:44]} 21. Bxd7 {[%emt 0:00:16]} Qxd7 22. Nb6 {[%emt 0:00:08]} Qa7 {[%emt 0:01:45]} 23. Nxa8 {[%emt 0:02:04]} d3 {[%emt 0:08:13]} 24. Bd4 {[%emt 0:04:49]} Qxa8 {[%emt 0:00:27]} 25. Qd2 {[%emt 0:01:09]} Qd5 {[%emt 0:01:00]} 26. Rc4 {[%emt 0:01:15]} e5 {[%emt 0:01:00]} 27. Bb2 {[%emt 0:00:06]} Bc5 {[%emt 0:07:44]} 28. Kh1 {[%emt 0:00:11]} e4 {[%emt 0:02:25]} 29. f4 {[%emt 0:00:34]} Bf5 {[%emt 0:02:08]} 30. Rfc1 {[%emt 0:00:11]} Bb6 {[%emt 0:00:52]} 31. Bd4 {[%emt 0:00:13]} Bd8 {[%emt 0:01:17]} 32. Rc5 {[%emt 0:06:22]} Qd7 {[%emt 0:00:33]} 33. Rf1 {[%emt 0:18:52]} a4 {[%emt 0:06:53]} 34. Rcc1 {[%emt 0:05:36]} axb3 {[%emt 0:01:43]} 35. axb3 {[%emt 0:00:09]} Be6 {[%emt 0:08:54]} 36. Qxb4 {[%emt 0:08:28]} Bxh3 {[%emt 0:00:55]} 37. Qd2 {[%emt 0:00:17]} Bg4 {[%emt 0:01:25]} 38. Qb2 {[%emt 0:06:12]} f6 {[%emt 0:01:37]} 39. b4 {[%emt 0:01:18]} Be2 {[%emt 0:00:37]} 40. Rf2 {[%emt 0:00:00]} Be7 {[%emt 0:00:00]} 41. Rxe2 {[%emt 0:02:10]} dxe2 {[%emt 0:03:55]} 42. Qxe2 {[%emt 0:00:05]} Rb8 {[%emt 0:01:34]} 43. Qc4+ {[%emt 0:02:58]} Kf8 {[%emt 0:00:57]} 44. Bc5 {[%emt 0:00:55]} Bxc5 {[%emt 0:06:05]} 45. bxc5 {[%emt 0:00:27]} Qc6 {[%emt 0:01:39]} 46. Rd1 {[%emt 0:00:22]} Rc8 {[%emt 0:00:39]} 47. Rd5 {[%emt 0:00:15]} Qe8 {[%emt 0:00:39]} 48. Qd4 {[%emt 0:01:19]} h6 {[%emt 0:01:31]} 49. Kg1 {[%emt 0:00:50]} Ra8 {[%emt 0:03:41]} 50. Qc3 {[%emt 0:06:19]} Qc6 {[%emt 0:02:48]} 51. Rd6 {[%emt 0:00:35]} Qc7 {[%emt 0:00:40]} 52. Qd4 {[%emt 0:00:09]} Rc8 {[%emt 0:02:19]} 53. c6 {[%emt 0:00:17]} Qa5 {[%emt 0:01:30]} 54. Kh2 {[%emt 0:00:23]} Qh5+ {[%emt 0:01:17]} 55. Kg3 {[%emt 0:00:29]} Qa5 {[%emt 0:11:22]} 56. Kf2 {[%emt 0:07:07]} Qa2+ {[%emt 0:01:01]} 57. Kg1 {[%emt 0:00:43]} Qa5 {[%emt 0:03:33]} 58. Kh2 {[%emt 0:01:11]} Qh5+ {[%emt 0:01:21]} 59. Kg3 {[%emt 0:00:05]} Qa5 {[%emt 0:00:23]} 60. Qxe4 {[%emt 0:04:39]} Re8 {[%emt 0:01:48]} 1/2-1/2